{"text_format":"1","workbook":"xlsx","n_sheets":6,"sheets":["Vælg skema","SEL §107","SEL §108","ABL §105","Vejledning","Data"],"not_rendered":{"charts":0,"images":0,"macros":1,"external_links":0,"defined_names":0,"comments":2,"pivot_tables":0},"unopened":[],"bounds":{"document_bytes":16777216,"sheet_cells":100000,"rows_first":2000,"rows_last":500,"rows_between":2000,"halvings":0,"cell_chars":16384,"cell_head_chars":4096},"cells_cut":0,"cells_raw":0,"read":"whole","date_system":"1900"}

{"sheet":"Vælg skema","index":0,"n_rows":14,"n_cols":2,"rows_kept":14,"cut":false,"hidden":false,"merged":[]}
[]
[null,"Vælg botilbudstype - klik på teksten i boksen for at gå til det rigtige oplysningsskema "]
[]
[null,"SEL §107 Skema"]
[]
[null,"SEL §108 Skema"]
[]
[null,"ABL §105 Skema"]
[]
[]
[]
[]
[]
[null,"  "]

{"sheet":"SEL §107","index":1,"n_rows":163,"n_cols":4,"rows_kept":163,"cut":false,"hidden":false,"merged":[[160,0,160,2],[132,0,132,3],[138,0,138,1],[139,0,139,1],[140,0,140,1],[141,0,141,1],[144,0,144,2],[146,0,146,2],[148,0,148,2],[130,0,130,2],[90,0,90,1],[91,0,91,2],[96,0,96,2],[104,0,104,1],[106,0,106,1],[107,0,107,1],[95,0,95,2],[110,0,110,2],[112,0,112,1],[128,0,128,2],[92,0,92,1],[99,0,99,2],[101,0,101,1],[102,0,102,1],[89,0,89,1],[78,0,78,1],[79,0,79,1],[80,0,80,1],[81,0,81,1],[82,0,82,1],[83,0,83,1],[84,0,84,1],[85,0,85,1],[86,0,86,1],[87,0,87,1],[88,0,88,1],[77,0,77,1],[47,0,47,2],[49,0,49,2],[65,0,65,2],[67,0,67,2],[69,0,69,2],[71,0,71,1],[72,0,72,2],[73,0,73,1],[74,0,74,1],[75,0,75,1],[76,0,76,1],[27,0,27,2],[11,1,11,2],[12,1,12,2],[13,1,13,2],[14,1,14,2],[15,1,15,2],[17,1,17,2],[18,1,18,2],[19,1,19,2],[20,1,20,2],[21,1,21,2],[22,1,22,2],[10,1,10,2],[0,0,0,3],[2,0,2,3],[6,0,6,2],[8,1,8,2],[9,1,9,2]]}
["Oplysningsskema 2025 - SEL §107\n- til beregning af borgerens egenbetaling for bolig m.v. samt minimums rådighedsbeløb"]
[]
["Syddanmark har udarbejdet dette boligoplysningsskema, som vi i MIdtjylland har fået lov til at benytte. \n\nHandlekommunen skal i henhold til lovgivningen fastsætte og opkræve borgeren for boligbetaling, el og varme efter § 107 og § 108 samt for kost efter SEL § 83 stk. nr. 3 (madserviceordning). Tilbuddet skal fortsat opkræve borgeren for andre valgfrie ydelser herunder øvrige kostordninger.\n\nDet enkelte tilbud skal udfylde et skema for hver borger. Oplysningsskemaet sendes til handlekommunerne senest den 1. november 2024 for borgere indskrevet i 2024. Ved indskrivninger efter 1. november skal skemaet så vidt muligt fremsendes til handlekommunen senest to uger inden indskrivningsdagen.\nOplysninger skal sendes vedrørende borgere i følgende tilbud: \n- §107 og §108 i Serviceloven\n- §105 efter Lov om almene boliger \nDer er udarbejdet et særskilt skema til hver paragraf. \n\nTal vedrørende 2024 skal oplyses i 2024 prisniveau og tal vedrørende 2025 i 2025 prisniveau.\nDe gule felter udfyldes i nedenstående skema. I kolonne D kan der tilføjes evt. yderligere bemærkninger, hvis der er behov herfor. "]
[]
["Dato for udfyldelse af skemaet"]
[]
["Borger og tilbudsoplysninger",null,null,"Se vejledning"]
[]
["Driftsmyndighed (f.eks. region, kommunenavn, privat tilbud)"]
["Tilbuddets navn"]
["Tilbuddets adresse"]
["Postnummer"]
["By"]
["Kontaktperson - Navn"]
["Kontaktperson - Email adresse (angiv en sikker email)"]
["Kontaktperson - Telefonnummer"]
[]
["Borgerens navn"]
["Borgerens cpr.- nummer"]
["Borgerens adresse"]
["Nummer på borgerens bolig"]
["Handlekommune for borgeren"]
["Betalingskommune for borgeren"]
[]
["Periode start"]
["Periode slut (hvis dette er besluttet)"]
[]
["Borgerens bolig "]
[]
["Borgerens bolig er oprettet efter:","Sæt kryds"]
["Serviceloven §107"]
[]
["Borgerens bolig ","Angiv antal ","Angiv om det er \"eget\" eller \"fælles\" rum"]
["Beboelsesrum"]
["Køkken "]
["Bad"]
["Toilet"]
[]
["Deles borgerens bolig med andre? (ja/nej)"]
["Er der brugsret til loft/kælderrum (ja/nej  - ved ja angiv nr. )"]
["Er der brugsret til garage (ja/nej - ved ja angiv nr. )"]
[]
["Fællesantenne mv. ","Angiv \"ja\" eller \"nej\"","Hvis \"ja\" - angiv om det er af kommunen, botilbud eller andre"]
["Leveres der fælles signalforsyning (antenne)?"]
["Leveres der elektroniske kommunikationstjenester?"]
[]
["Uddybende bemærkninger"]
[]
[]
["Tilbuddets arealfordeling",null,null,"Se vejledning"]
[]
[null,"Kvadratmeter","Andel"]
["Boligareal (hele tilbuddet)",null,{"$f":"B53/$B$56","v":{"$error":"#DIV/0!"}}]
["Fælleareal inklusiv gangareal (hele tilbuddet)",null,{"$f":"B54/$B$56","v":{"$error":"#DIV/0!"}}]
["Serviceareal/kontorer m.m. (hele tilbuddet)",null,{"$f":"B55/$B$56","v":{"$error":"#DIV/0!"}}]
["I alt (hele tilbuddet)",{"$f":"SUM(B53:B55)","v":0},{"$f":"SUM(C53:C55)","v":{"$error":"#DIV/0!"}}]
[]
["Heraf beboerandel (bolig og fællesareal)",{"$f":"B53+B54","v":0},{"$f":"B58/B56","v":{"$error":"#DIV/0!"}}]
[]
["Antal boliger i tilbuddet"]
[]
["Borgerens konkrete boligareal"]
["Borgerens andel af fællesarealer",{"$f":"B54/B60","v":{"$error":"#DIV/0!"}}]
["Borgerens boligareal og andel af fælles areal i alt ",{"$f":"SUM(B62:B63)","v":{"$error":"#DIV/0!"}}]
[]
["Boligbetaling (husleje) ",null,null,"Se vejledning"]
[]
["Tilbuddets omkostninger 2025 - *inklusiv moms på momsbærende områder efter konkret vurdering",null,null,"Se vejledning"]
[]
["Det er handlekommunen, der skal fastsætte borgerens boligbetaling under ophold efter SEL §107.  Nedenfor fremgår oplysninger til beregning af betalingen efter boligens omkostninger og størrelse. Det er handlekommunes opgave at kontrollere og evt. korrigere nedenstående beregning. \n\nHvis tilbuddet er i lejede bygninger anvendes huslejen istedet for ejendomsvurderingen. Beløbet for lejen indtastes under \"øvrige omkostninger\"\n\nVær opmærksom på, at der i beregningen af huslejen for § 107 er to grundprincipper:\n• Borgeren må ikke betale mere end hvad der svarer til huslejen i sammenlignelige lejeboliger fratrukket den boligstøtte som borgeren ville have fået i en almen familiebolig (lighedsprincippet). \n• Handlekommunen må ikke opkræve mere ved borgeren end de faktiske boligrelaterede udgifter. Dette kan beregnes ved at se på boligens andel af ejendommens driftsudgifter.  "]
[]
["Typer af omkostninger",null,"Budget 2025\nSamlede omkostninger\n(2025 prisniveau)"]
["Ejendommens driftsudgifter"]
["Ejendomsskat"]
["Forsikring vedr. ejendommen*"]
["Renovation*"]
["Vand og afløb*"]
["Rengøringsfirma*"]
["Rengøringspersonale"]
["Rengøringsmidler*"]
["Vinduespudsning*"]
["Inventar til fælleslokaler (møbler, hvidevarer, køkkenudstyr m.m.)*"]
["Reparationer af inventar (maskiner, køkkeninventar, tekniske anlæg m.m.)*"]
["Bygningsvedligehold, indendørs*"]
["Bygningsvedligehold, udendørs*"]
["Udenomsarealer*"]
["Pedel (lønudgift)"]
["Servicekontrakter*"]
["Administration*"]
["Evt. øvrige omkostninger (indsæt)"]
["Samlede driftsudgifter 2025 i alt - *inklusiv moms på momsbærende områder",null,{"$f":"SUM(C74:C90)","v":0}]
[]
["Seneste offentlige ejendomsvurdering"]
[]
["Uddybende bemærkninger til ovenstående driftsudgifter"]
[]
[]
["Eksempel på beregning af borgerens betaling efter boligens omkostninger "]
[]
["Dette er et muligt eksempel på en beregningsmetode, og der sagtens kan være andre måder at lave beregningen på. Der tages udgangspunkt i, at den årlige omkostning til bygningen svarer til 1/30 del af bygningens ejendomsvurdering. "]
[]
["En andel af den offentlige ejendomsvurdering (30 år)",null,{"$f":"C93/30","v":0}]
["Forrentning"]
[]
["Samlede omkostninger 2025 i alt inkl. 1/30 del af den offentlige ejendomsvurdering",null,{"$f":"C91+C102+C103","v":0}]
[]
["Borgerens betaling efter boligens omkostninger og størrelse pr. år",null,{"$f":"C105/B56*B64","v":{"$error":"#DIV/0!"}}]
["Borgerens betaling efter boligens omkostninger og størrelse pr. måned",null,{"$f":"C107/12","v":{"$error":"#DIV/0!"}}]
[]
[]
["El og varme 2025 - aconto betaling inkl. moms",null,null,"Se vejledning"]
[]
["Hele tilbuddets forventede udgifter til el og varme i 2025 (inkl. boligareal, fællesareal og serviceareal). I bemærkningsfeltet bør det angives, hvordan acontobetalingen er beregnet. "]
[]
[null,"Forventet aconto betaling 2025 pr. borger pr. måned inkl. moms","Sæt kryds, hvis  forsyningsselskabet sender opkrævning direkte til borgeren\n (oplysning om beløb kan fås ved henvendelse til borgeren)"]
["El - egen bolig"]
["El - fællesareal"]
["Varme - egen bolig"]
["Varme - fællesareal"]
["I alt",{"$f":"SUM(B116:B119)","v":0}]
[]
["Boligen opvarmes ved","Sæt kryds"]
["Centralvarme med olie"]
["Fjernvarme/naturgas"]
["El "]
["Andet - angiv"]
[]
["Uddybende bemærkninger til el og varme betaling"]
["Angiv her, hvordan acontobetalingen er beregnet f.eks. Ud fra egne eller fælles målere, kvadratmeterfordeling eller andet. "]
[]
["Kostordning",null,null,"Se vejledning"]
[]
["Det er handlekommunen, der visiterer borgeren til en af de tre kostordninger. Borgeren betaler for kost ud fra, hvilken kostordning de er visiteret til. I henhold til rammeaftalen fastsætter og opkræver handlekommunen beløbet for madserviceordning, mens det er botilbuddet der fastsætter og opkræver beløbet for de to andre kostordninger. \n\nVær opmærksom på, at der i henhold til loven er fastsat et årlig maksimal egenbetaling, som handlekommunen må opkræve for madservice (SEL §83, stk.1 nr. 3). Tilbuddets omkostninger kan være højere end dette maksimale beløb."]
[]
["Kostordning - der opkræves af tilbuddet hos borgeren","Månedlig opkrævning 2024 inkl. moms pr. borger","Månedlig opkrævning 2025 inkl. moms pr. borger"]
["1. Praktisk hjælp SEL 83 stk. 1, nr. 2"]
["2. Socialpædagogisk bistand til madlavning SEL §85 "]
[]
["Kostordning - der fastsættes af handlekommunen og opkræves af handlekommunen hos borgeren",null,"Tilbuddets månedlig omkostning 2025 inkl. moms pr. borger"]
["3. Madservice SEL §83 stk. 1, nr. 3 - eksklusiv forarbejdning"]
["3. Madservice SEL §83 stk. 1, nr. 3 - forarbejdningstillæg"]
["3. I alt madservice SEL §83 stk. 1, nr. 3 - inkl. forarbejdning",null,{"$f":"SUM(C140:C141)","v":0}]
[]
["Uddybende bemærkninger til kostordning"]
[]
[]
["Valgfrie borgerydelser inkl. moms",null,null,"Se vejledning"]
[]
["Valgfrie borgerydelse (angiv beløb og hvem der opkræver, hvis borgeren opkræves herfor)\n"]
["Oplysninger om beløb for øvrige valgfrie ydelser kan fås ved henvendelse til botilbuddet.","Månedlig opkrævning 2025\n inkl. moms","Angiv hvem der opkræver ydelsen"]
["Rengøringsartikler/midler "]
["Vaskemidler"]
["Øvrige valgfrie borgerydelser"]
["Øvrige valgfrie borgerydelser"]
["Øvrige valgfrie borgerydelser"]
["Øvrige valgfrie borgerydelser"]
["Øvrige valgfrie borgerydelser"]
["I alt ",{"$f":"SUM(B151:B157)","v":0}]
[]
["Uddybende bemærkninger til valgfrie ydelser"]
[]
[]
["Skemaet er opdateret den 27. august 2024"]

{"sheet":"SEL §108","index":2,"n_rows":157,"n_cols":4,"rows_kept":157,"cut":false,"hidden":false,"merged":[[11,1,11,2],[12,1,12,2],[2,0,2,3],[85,0,85,1],[86,0,86,1],[71,0,71,1],[69,0,69,2],[19,1,19,2],[10,1,10,2],[47,0,47,2],[76,0,76,1],[77,0,77,1],[78,0,78,1],[84,0,84,1],[83,0,83,1],[20,1,20,2],[96,0,96,1],[104,0,104,2],[142,0,142,2],[87,0,87,1],[88,0,88,1],[140,0,140,2],[98,0,98,1],[138,0,138,2],[133,0,133,1],[154,0,154,2],[99,0,99,1],[126,0,126,3],[134,0,134,1],[135,0,135,1],[124,0,124,2],[132,0,132,1],[0,0,0,3],[106,0,106,1],[122,0,122,2],[102,0,102,2],[73,0,73,1],[74,0,74,1],[75,0,75,1],[9,1,9,2],[8,1,8,2],[13,1,13,2],[14,1,14,2],[15,1,15,2],[6,0,6,2],[65,0,65,2],[17,1,17,2],[18,1,18,2],[21,1,21,2],[22,1,22,2],[79,0,79,1],[27,0,27,2],[94,0,94,1],[82,0,82,1],[89,0,89,1],[90,0,90,1],[49,0,49,2],[67,0,67,2],[80,0,80,1],[81,0,81,1],[72,0,72,2],[93,0,93,2],[91,0,91,2]]}
["Oplysningsskema 2025 - SEL §108\n- til beregning af borgerens egenbetaling for bolig m.v. samt minimums rådighedsbeløb"]
[]
["Syddanmark har udarbejdet dette boligoplysningsskema, som vi i MIdtjylland har fået lov til at benytte. \n\nHandlekommunen skal i henhold til lovgivningen fastsætte og opkræve borgeren for boligbetaling, el og varme efter § 107 og § 108 samt for kost efter SEL § 83 stk. nr. 3 (madserviceordning). Tilbuddet skal fortsat opkræve borgeren for andre valgfrie ydelser herunder øvrige kostordninger.\n\nDet enkelte tilbud skal udfylde et skema for hver borger. Oplysningsskemaet sendes til handlekommunerne senest den 1. november 2024 for borgere indskrevet i 2024. Ved indskrivninger efter 1. november skal skemaet så vidt muligt fremsendes til handlekommunen senest to uger inden indskrivningsdagen.\nOplysninger skal sendes vedrørende borgere i følgende tilbud: \n- §107 og §108 i Serviceloven\n- §105 efter Lov om almene boliger \nDer er udarbejdet et særskilt skema til hver paragraf. \n\nTal vedrørende 2024 skal oplyses i 2024 prisniveau og tal vedrørende 2025 i 2025 prisniveau.\nDe gule felter udfyldes i nedenstående skema. I kolonne D kan der tilføjes evt. yderligere bemærkninger, hvis der er behov herfor. "]
[]
["Dato for udfyldelse af skemaet"]
[]
["Borger og tilbudsoplysninger",null,null,"Se vejledning"]
[]
["Driftsmyndighed (f.eks. region, kommunenavn, privat tilbud)"]
["Tilbuddets navn"]
["Tilbuddets adresse"]
["Postnummer"]
["By"]
["Kontaktperson - Navn"]
["Kontaktperson - Email adresse (angiv en sikker email)"]
["Kontaktperson - Telefonnummer"]
[]
["Borgerens navn"]
["Borgerens cpr.- nummer"]
["Borgerens adresse"]
["Nummer på borgerens bolig"]
["Handlekommune for borgeren"]
["Betalingskommune for borgeren"]
[]
["Periode start"]
["Periode slut (hvis dette er besluttet)"]
[]
["Borgerens bolig "]
[]
["Borgerens bolig er oprettet efter:","Sæt kryds"]
["Serviceloven §108"]
[]
["Borgerens bolig ","Angiv antal ","Angiv om det er \"eget\" eller \"fælles\" rum"]
["Beboelsesrum"]
["Køkken "]
["Bad"]
["Toilet"]
[]
["Deles borgerens bolig med andre? (ja/nej)"]
["Er der brugsret til loft/kælderrum (ja/nej  - ved ja angiv nr. )"]
["Er der brugsret til garage (ja/nej - ved ja angiv nr. )"]
[]
["Fællesantenne mv. ","Angiv \"ja\" eller \"nej\"","Hvis \"ja\" - angiv om det er af kommunen, botilbud eller andre"]
["Leveres der fælles signalforsyning (antenne)?"]
["Leveres der elektroniske kommunikationstjenester?"]
[]
["Uddybende bemærkninger"]
[]
[]
["Tilbuddets arealfordeling",null,null,"Se vejledning"]
[]
[null,"Kvadratmeter","Andel"]
["Boligareal (hele tilbuddet)",null,{"$f":"B53/$B$56","v":{"$error":"#DIV/0!"}}]
["Fælleareal inklusiv gangareal (hele tilbuddet)",null,{"$f":"B54/$B$56","v":{"$error":"#DIV/0!"}}]
["Serviceareal/kontorer m.m. (hele tilbuddet)",null,{"$f":"B55/$B$56","v":{"$error":"#DIV/0!"}}]
["I alt (hele tilbuddet)",{"$f":"SUM(B53:B55)","v":0},{"$f":"SUM(C53:C55)","v":{"$error":"#DIV/0!"}}]
[]
["Heraf beboerandel (bolig og fællesareal)",{"$f":"B53+B54","v":0},{"$f":"B58/B56","v":{"$error":"#DIV/0!"}}]
[]
["Antal boliger i tilbuddet"]
[]
["Borgerens konkrete boligareal"]
["Borgerens andel af fællesarealer",{"$f":"B54/B60","v":{"$error":"#DIV/0!"}}]
["Borgerens boligareal og andel af fælles areal i alt ",{"$f":"SUM(B62:B63)","v":{"$error":"#DIV/0!"}}]
[]
["Boligbetaling (husleje) ",null,null,"Se vejledning"]
[]
["Tilbuddets omkostninger 2025 - *inklusiv moms på momsbærende områder efter konkret vurdering",null,null,"Se vejledning"]
[]
["Det er handlekommunen, der skal fastsætte borgerens boligbetaling under ophold efter SEL § 108.  Nedenfor fremgår oplysninger til beregning af betalingen efter boligens omkostninger og størrelse. Det er handlekommunes opgave at kontrollere og evt. korrigere nedenstående beregning. \n\nHvis tilbuddet er i lejede bygninger anvendes huslejen istedet for ejendomsvurderingen. Beløbet for lejen indtastes under \"øvrige omkostninger\""]
[]
["Typer af omkostninger",null,"Budget 2025\nSamlede omkostninger\n(2025 prisniveau)"]
["Ejendommens driftsudgifter"]
["Ejendomsskat"]
["Forsikring vedr. ejendommen*"]
["Renovation*"]
["Vand og afløb*"]
["Rengøringsfirma*"]
["Rengøringspersonale"]
["Rengøringsmidler*"]
["Vinduespudsning*"]
["Inventar til fælleslokaler (møbler, hvidevarer, køkkenudstyr m.m.)*"]
["Reparationer af inventar (maskiner, køkkeninventar, tekniske anlæg m.m.)*"]
["Bygningsvedligehold, indendørs*"]
["Bygningsvedligehold, udendørs*"]
["Udenomsarealer*"]
["Pedel (lønudgift)"]
["Servicekontrakter*"]
["Administration*"]
["Evt. øvrige omkostninger (indsæt)"]
["Samlede driftsudgifter 2025 i alt - *inklusiv moms på momsbærende områder",null,{"$f":"SUM(C74:C90)","v":0}]
[]
["Seneste offentlige ejendomsvurdering",null,{"$f":"B93*10%","v":0}]
[]
["Samlede omkostninger 2025 i alt ",null,{"$f":"C91+C93","v":0}]
[]
["10% af ejendommens samlede driftsomkostninger",null,{"$f":"C95*10%","v":0}]
[]
["Borgerens betaling efter boligens omkostninger og størrelse pr. år",null,{"$f":"C97/B56*B64","v":{"$error":"#DIV/0!"}}]
["Borgerens betaling efter boligens omkostninger og størrelse pr. måned",null,{"$f":"C99/12","v":{"$error":"#DIV/0!"}}]
[]
["Uddybende bemærkninger til ovenstående driftsudgifter"]
[]
[]
["El og varme 2025 - aconto betaling inkl. moms",null,null,"Se vejledning"]
[]
["Hele tilbuddets forventede udgifter til el og varme i 2025 (inkl. boligareal, fællesareal og serviceareal). I bemærkningsfeltet bør det angives, hvordan acontobetalingen er beregnet."]
[]
[null,"Forventet aconto betaling 2025 pr. borger pr. måned inkl. moms","Sæt kryds, hvis  forsyningsselskabet sender opkrævning direkte til borgeren\n (oplysning om beløb kan fås ved henvendelse til borgeren)"]
["El - egen bolig"]
["El - fællesareal"]
["Varme - egen bolig"]
["Varme - fællesareal"]
["I alt",{"$f":"SUM(B110:B113)","v":0}]
[]
["Boligen opvarmes ved","Sæt kryds"]
["Centralvarme med olie"]
["Fjernvarme/naturgas"]
["El "]
["Andet - angiv"]
[]
["Uddybende bemærkninger til el og varme betaling"]
["Angiv her, hvordan acontobetalingen er beregnet f.eks. Ud fra egne eller fælles målere, kvadratmeterfordeling eller andet. "]
[]
["Kostordning",null,null,"Se vejledning"]
[]
["Det er handlekommunen, der visiterer borgeren til en af de tre kostordninger. Borgeren betaler for kost ud fra, hvilken kostordning de er visiteret til. I henhold til rammeaftalen fastsætter og opkræver handlekommunen beløbet for madserviceordning, mens det er botilbuddet der fastsætter og opkræver beløbet for de to andre kostordninger. \n\nVær opmærksom på, at der i henhold til loven er fastsat et årlig maksimal egenbetaling, som handlekommunen må opkræve for madservice (SEL §83, stk.1 nr. 3). Tilbuddets omkostninger kan være højere end dette maksimale beløb."]
[]
["Kostordning - der opkræves af tilbuddet hos borgeren","Månedlig opkrævning 2024 inkl. moms pr. borger","Månedlig opkrævning 2025 inkl. moms pr. borger"]
["1. Praktisk hjælp SEL 83 stk. 1, nr. 2"]
["2. Socialpædagogisk bistand til madlavning SEL §85 "]
[]
["Kostordning - der fastsættes af handlekommunen og opkræves af handlekommunen hos borgeren",null,"Tilbuddets månedlig omkostning 2025 inkl. moms pr. borger"]
["3. Madservice SEL §83 stk. 1, nr. 3 - eksklusiv forarbejdning"]
["3. Madservice SEL §83 stk. 1, nr. 3 - forarbejdningstillæg"]
["3. I alt madservice SEL §83 stk. 1, nr. 3 - inkl. forarbejdning",null,{"$f":"SUM(C134:C135)","v":0}]
[]
["Uddybende bemærkninger til kostordning"]
[]
[]
["Valgfrie borgerydelser inkl. moms",null,null,"Se vejledning"]
[]
["Valgfrie borgerydelse (angiv beløb og hvem der opkræver, hvis borgeren opkræves herfor)\n"]
["Oplysninger om beløb for øvrige valgfrie ydelser kan fås ved henvendelse til botilbuddet.","Månedlig opkrævning 2025\n inkl. moms","Angiv hvem der opkræver ydelsen"]
["Rengøringsartikler/midler "]
["Vaskemidler"]
["Øvrige valgfrie borgerydelser"]
["Øvrige valgfrie borgerydelser"]
["Øvrige valgfrie borgerydelser"]
["Øvrige valgfrie borgerydelser"]
["Øvrige valgfrie borgerydelser"]
["I alt ",{"$f":"SUM(B145:B151)","v":0}]
[]
["Uddybende bemærkninger til valgfrie ydelser"]
[]
[]
["Skemaet er opdateret den 27. august 2024"]

{"sheet":"ABL §105","index":3,"n_rows":49,"n_cols":4,"rows_kept":49,"cut":false,"hidden":false,"merged":[[43,0,43,1],[46,0,46,2],[32,0,32,2],[34,0,34,3],[40,0,40,1],[41,0,41,1],[42,0,42,1],[27,0,27,2],[11,1,11,2],[12,1,12,2],[13,1,13,2],[14,1,14,2],[15,1,15,2],[17,1,17,2],[18,1,18,2],[19,1,19,2],[20,1,20,2],[21,1,21,2],[22,1,22,2],[10,1,10,2],[0,0,0,3],[2,0,2,3],[6,0,6,2],[8,1,8,2],[9,1,9,2]]}
["Oplysningsskema 2025 - ABL §105\n- til beregning af borgerens egenbetaling for bolig m.v. samt minimums rådighedsbeløb"]
[]
["Syddanmark har udarbejdet dette boligoplysningsskema, som vi i MIdtjylland har fået lov til at benytte. \n\nHandlekommunen skal i henhold til lovgivningen fastsætte og opkræve borgeren for boligbetaling, el og varme efter § 107 og § 108 samt for kost efter SEL § 83 stk. nr. 3 (madserviceordning). Tilbuddet skal fortsat opkræve borgeren for andre valgfrie ydelser herunder øvrige kostordninger.\n\nDet enkelte tilbud skal udfylde et skema for hver borger. Oplysningsskemaet sendes til handlekommunerne senest den 1. november 2024 for borgere indskrevet i 2024. Ved indskrivninger efter 1. november skal skemaet så vidt muligt fremsendes til handlekommunen senest to uger inden indskrivningsdagen.\nOplysninger skal sendes vedrørende borgere i følgende tilbud: \n- §107 og §108 i Serviceloven\n- §105 efter Lov om almene boliger \nDer er udarbejdet et særskilt skema til hver paragraf. \n\nTal vedrørende 2024 skal oplyses i 2024 prisniveau og tal vedrørende 2025 i 2025 prisniveau.\nDe gule felter udfyldes i nedenstående skema. I kolonne D kan der tilføjes evt. yderligere bemærkninger, hvis der er behov herfor. "]
[]
["Dato for udfyldelse af skemaet"]
[]
["Borger og tilbudsoplysninger",null,null,"Se vejledning"]
[]
["Driftsmyndighed (f.eks. region, kommunenavn, privat tilbud)"]
["Tilbuddets navn"]
["Tilbuddets adresse"]
["Postnummer"]
["By"]
["Kontaktperson - Navn"]
["Kontaktperson - Email adresse (angiv en sikker email)"]
["Kontaktperson - Telefonnummer"]
[]
["Borgerens navn"]
["Borgerens cpr.- nummer"]
["Borgerens adresse"]
["Nummer på borgerens bolig"]
["Handlekommune for borgeren"]
["Betalingskommune for borgeren"]
[]
["Periode start"]
["Periode slut (hvis dette er besluttet)"]
[]
["Borgerens bolig "]
[]
["Borgerens bolig er oprettet efter:","Sæt kryds"]
["Lov om almene boliger §105"]
[]
["Kostordning",null,null,"Se vejledning"]
[]
["Det er handlekommunen, der visiterer borgeren til en af de tre kostordninger. Borgeren betaler for kost ud fra, hvilken kostordning de er visiteret til. I henhold til rammeaftalen fastsætter og opkræver handlekommunen beløbet for madserviceordning, mens det er botilbuddet der fastsætter og opkræver beløbet for de to andre kostordninger. \n\nVær opmærksom på, at der i henhold til loven er fastsat et årlig maksimal egenbetaling, som handlekommunen må opkræve for madservice (SEL §83, stk.1 nr. 3). Tilbuddets omkostninger kan være højere end dette maksimale beløb."]
[]
["Kostordning - der opkræves af tilbuddet hos borgeren","Månedlig opkrævning 2024 inkl. moms pr. borger","Månedlig opkrævning 2025 inkl. moms pr. borger"]
["1. Praktisk hjælp SEL 83 stk. 1, nr. 2"]
["2. Socialpædagogisk bistand til madlavning SEL §85 "]
[]
["Kostordning - der fastsættes af handlekommunen og opkræves af handlekommunen hos borgeren",null,"Tilbuddets månedlig omkostning 2025 inkl. moms pr. borger"]
["3. Madservice SEL §83 stk. 1, nr. 3 - eksklusiv forarbejdning"]
["3. Madservice SEL §83 stk. 1, nr. 3 - forarbejdningstillæg"]
["3. I alt madservice SEL §83 stk. 1, nr. 3 - inkl. forarbejdning",null,{"$f":"SUM(C42:C43)","v":0}]
[]
["Uddybende bemærkninger til kostordning"]
[]
[]
["Skemaet er opdateret den 27. august 2024"]

{"sheet":"Vejledning","index":4,"n_rows":48,"n_cols":1,"rows_kept":48,"cut":false,"hidden":false,"merged":[]}
["Vejledning til oplysningsskema - SEL §107 og §108 samt ABL §105"]
["Vejledningen er opdateret den 27. august 2024"]
[]
["Nedenstående er en samlet vejledning til udfyldelse af de tre oplysningsskemaer og hjælp til de efterfølgende beregninger. Vejledningen er ikke udtømmende og derfor anbefales det at læse reglerne i de relevante love/bekendtgørelser m.m. Alle tre skemaer henviser til denne side. "]
[]
["Borger og tilbudsoplysninger"]
[]
["Periode start: \nHvis borgerne er flyttet ind i løbet af året, angives datoen for indflytningstidspunktet. Hvis borgeren er flyttet ind i foregående år angives datoen for periode start som datoen primo året  for det år, som skemaet er udfyldt f.eks. 1.1.2025 i oplysningsskemaet for 2025. "]
["Periode slut: \nHvis handlekommunen har truffet afgørelse om en udflytningsdato i løbet af det kommende år, angives datoen. "]
[]
["Tilbuddets arealfordeling"]
["Tilbuddets arealfordeling skal bruges til beregning af boligbetalingen for boliger efter SEL §108 og evt. §107 samt evt. til fordeling af udgifter til el og varme. Der skelnes mellem boligareal, fælles areal samt serviceareal. Hjælp til fordeling mellem bolig og serviceareal findes i kapitel 7 i Vejledning om botilbud m.v. til voksne, punkt 121. Ud fra en konkret vurdering tages stilling til, hvilke rum der må henregnes til serviceareal. Fra bygningens samlede bruttoareal fratrækkes herefter servicearealet. Det således resterende bruttoetageareal udgør herefter boligarealet."]
["Boligdel (bolig- og fællesarealer)\nTil bolig-/fællesarealer hører beboernes egne boliger samt de fælles opholdsarealer (eksempelvis gangarealer, der forbinder boliger og fælles boligarealer, fælles opholdsarealer, fælles spisekøkken for boligens beboere, toilet i forbindelse med fælles opholdsareal eller fælles spisekøkken, hobbyrum for beboerne, gæsteværelse for beboerne, tekøkken m.m.). I praksis primært ”beboernes arealer”."]
["Servicearealer\nServicearealer er arealer, som anvendes til funktioner, der normalt ikke foregår i en bolig. Servicearealer er f.eks. lokaler til genoptræning, personalelokaler, kontorer, vagtrum, centralkøkken, cafeteria, kiosk, hvilerum for personale/dagcentergæster, særligt indrettet baderum, svømmehal, rengøringsrum, depotrum, gangarealer, der forbinder servicearealer, lokaler til aflastningsbrugere m.m."]
["Antal boliger i tilbuddet: \nHer angives antallet af boliger, der er i tilbuddet. Tomme boliger og boliger der ikke er udlejet tælles også med i det samlede antal. "]
["Borgerens konkrete boligareal: \nHer angives kvadratmetrene for borgerens egen bolig. "]
[]
["Boligbetaling (husleje) "]
["Fastsættelsen af boligbetalingen (huslejen) efter servicelovens §107 og §108 fremgår af: BEK nr. 1387 af 12/12/2006 Bekendtgørelse om betaling for botilbud m.v. efter servicelovens kapitel 20 samt om flytteret i forbindelse med botilbud efter § 108. "]
["Boligbetaling for midlertidigt ophold efter SEL § 107\nDet fremgår af lovgivningen, at handlekommunen fastsætter betaling for opholdet i botilbuddet. Det er ikke nærmere præciseret, hvordan handlekommunen skal fastsætte betalingen. Handlekommunen kan fastsætte betalingen som\na) Et samlet beløb for boligen og de ydelser (eks. husleje, kost, el og varme), der er en integreret del af opholdet.\nb) Betaling under hensyntagen til de ydelser, der modtages, bl.a. sådan at det er muligt at fravælge et eller flere måltider eller andre ydelser, der er en integreret del af opholdet.\nc) En takst pr. døgn udregnet efter de gennemsnitlige udgifter til ydelserne.\n\nUanset hvilken metode handlekommunen vælger, skal tilbuddet oplyse prisen for de enkelte ydelser dvs. kost, el, varme, husleje. \n\nI beregningen af huslejen for § 107 er der to grundprincipper:\n• Borgeren må ikke betale mere end hvad der svarer til husleje i sammenlignelige lejeboliger fratrukket den boligstøtte som borgeren ville have fået i en almen familiebolig (lighedsprincippet). Dette er for at sikre, at borgere med funktionsnedsættelse ikke har flere boligudgifter, end hvad borgere uden funktionsnedsættelse normalt har af udgifter til en lejebolig af samme størrelse og beliggenhed som botilbuddet. \n• Handlekommunen må ikke opkræve mere ved borgeren end de faktiske boligrelaterede udgifter. Dette kan beregnes ved at se på boligens andel af ejendommens driftsudgifter jvf. opgørelsen i oplysningsskemaet.   \nLæs mere i kapitel 6 i Vejledning om botilbud m.v. til voksne"]
["Hvis §107 husleje skal ses i forhold til en sammenlignelig lejebolig kan kvadratmeterpriser på sammenlignelige boliger f.eks. findes på Landsbyggefondens hjemmeside: https://www.lbf.dk/analyser/statistikker-og-analyser/huslejestatistik/ \n\nEn mulig fremgangsmåde er følgende:\nTabel 7 viser den gennemsnitlige årlig husleje pr. kvadratmeter fordelt på kommune. Der kan anvendes satsen pr. kvadratmeter for familieboliger i den kommune borgeren har sit botilbud. Herefter skal der beregnes evt. fratræk for boligsikring. På portalen Borger.dk/Boligstøtte/søg Boligstøtte beregnes borgerens boligstøtte ved at indtaste adresseoplysninger, boligoplysninger, indkomstoplysninger, beboeroplysninger og huslejeoplysninger. Det eventuelt fremkomne boligstøttebeløb (kan være 0) fratrækkes huslejen, hvorved den konkrete husleje fremkommer.\n\nVær obs. på evt. at prisfremskrive efter KL´s nyeste pris- og lønskøn, således at kvadratmeterprisen er i opkrævningsårets tal.\n"]
[]
["Boligbetaling for længerevarende ophold efter SEL § 108\nBeregningen af boligbetaling for ophold efter SEL § 108 fremgår af lovgivningen og er detaljeret beskrevet i BEK nr 1387 af 12/12/2006 og i kapitel 7 i Vejledning om botilbud m.v. til voksne \n\nDet er handlekommunen, der skal beregne og fastsætte beboerens boligbetaling under ophold efter SEL § 108. \nBoligbetaling består af to beregninger og beregnes på grundlag af \na) Boligens budgetterede omkostninger \nb) Borgerens forventede indtægt. \nHerudover opkræves der for el og varme. \n\n"]
["a) Boligbetaling – omkostningsbestemt (SEL §108)\nDen areal- og omkostningsbestemte del af huslejen fastsættes for et år ad gangen og beregnes jf. kapitel 7 i Vejledning om botilbud m.v. til voksne som: De beregnede samlede omkostninger = budgetterede driftsudgifter inkl. moms til bygningerne + 10 % af seneste offentlige ejendomsvurdering.\n\nSpecifikation af hvilke omkostninger der må medtages i beregningen af de budgetterede driftsudgifter findes i kapitel 7 i Vejledning om botilbud m.v. til voksne, punkt 119 \n\nHvis de 10 % af den seneste offentlige ejendomsvurdering overstiger tilbuddets udgifter til renter og afdrag på lån (afskrivninger) i bygningerne, kan det vælges i stedet at anvende tilbuddets udgifter til renter og afdrag (afskrivninger) på bygningerne i beregningen.\n\nDe beregnede samlede omkostninger (den maksimale husleje) fordeles på henholdsvis servicedel og boligdel (boliger og fællesarealer) efter arealstørrelse. Hjælp til fordeling mellem bolig og serviceareal findes i kapitel 7 i Vejledning om botilbud m.v. til voksne, punkt 121. Omkostningerne, der herefter er henført til boligdelen, fordeles på de enkelte boliger efter disses arealstørrelse. De beløb, beboeren skal betale vedrørende den areal- og omkostningsbestemte del af huslejen, udgør herefter 10 % af de omkostninger, der er henført til beboerens bolig.\n\nDet er tilbuddets opgave at tilvejebringe de nødvendige oplysninger til brug for handlekommunens beregning af den omkostningsbestemte del af egenbetalingen."]
["b) Boligbetaling – indkomstbestemt (SEL §108)\nBoligbetalingen tillægges et beløb, som beregnes på baggrund af beboerens indkomst. \na. Ved beregningen medtages 10 % af beboerens opgjorte indkomst op til 234.000 kr. (2024 niveau), dog 20 pct. af indkomst over grænsebeløbet på 234.000 (2024 niveau). Grænsebeløbet reguleres årligt. Beboerens indkomst opgøres som udgangspunkt som borgerens faktiske indkomst, minus børne- og ægtefællebidrag - se de specifikke regler i bekendtgørelsen.\nb. Enlige pensionister får et bundfradrag på 50.800 kr. (2024 niveau)\nc. Den opgjorte indkomst nedrundes til hele 1.000 kr.\n\nSe yderligere reglerne for opgørelse af beboerens indkomst i BEK nr. 1387 af 12/12/2006, da ovenstående ikke er udtømmende."]
[]
["Tilbuddets omkostninger 2025"]
["Driftsudgifterne for tilbuddet/ejendommen skal forstås som de samlede budgetterede driftsudgifter, der er forbundet med den løbende drift. Indgår der i de budgetterede driftsudgifter poster, der betales moms af, medtages udgifterne inklusiv moms. Udgifter til lønninger og udgifter til pleje (herunder særlige hjælpemidler), forplejning og lignende skal ikke medtages i opgørelsen af driftsudgifterne. Ligeledes skal udgifter til renter og afdrag på lån i bygningerne ikke medregnes. Udgifter til el og varme medtages ikke i opgørelsen af driftsudgifterne. Specifikation af hvilke omkostninger der må medtages i beregningen findes i kapitel 7 i Vejledning om botilbud m.v. til voksne, pkt. 119. \n\nI lejede bygninger svarer boligens omkostninger til lejen i erhvervslejemålet med tillæg af øvrige driftsudgifter, der ikke indgår i erhvervslejen."]
["Vand: \nUdgiften til vand for botilbuddet og borgernes bolig indregnes i tilbuddets driftsudgifter. "]
["Rengøringsudgifter: \nUdgifterne omfatter rengøringsmidler, materiale samt løn til personale eller alternativt betaling af rengøringsselskab. Rengøringsudgifter vedrørende beboernes egne værelser indgår ikke."]
["Seneste offentlige ejendomsvurdering: \nI skemaet indtastes beløbet for den seneste offentlige ejendomsvurdering (ejendomsværdi og grundværdi). Skemaet beregner selv 10% af den seneste offentlige ejendomsvurdering. \n\nI lejede bygninger anvendes huslejen istedet for ejendomsvurderingen. Beløbet for lejen skal indtastes under \"øvrige omkostninger\". Vær opmærksom på at indsætte den samlede husleje for både bolig/service/fælles areal for alle borgere og ikke kun huslejen for den specifikke borger. "]
[]
["El og varme"]
["Det er en kommunal myndighedsafgørelse at fastsætte betalingen for el og varme. I praksis er det ofte botilbuddet, der har kendskab til omkostninger til el og varme, hvorfor det er botilbuddet, der kan opgøre udgiften hertil. Opkrævningen skal svare til tilbuddets faktiske udgifter på de samlede bolig- og fællesarealer inkl. udgifter til moms. \n\nI beregningen af, hvor meget beboerne skal opkræves for el- og varme, benyttes ligesom i huslejeberegningen arealfordelingen i tilbuddet.  Bygningens areal opdeles i boligareal, fællesareal samt serviceareal. Opdeling i boligdel og servicedel er nærmere beskrevet i afsnittet ovenfor om \"tilbuddets arealfordeling\". Beboerne skal betale for den del, der vedrører boligen plus boligens andel af fællesareal. Hjælp til fordeling mellem bolig og serviceareal findes i kapitel 7 i Vejledning om botilbud m.v. til voksne, punkt 121. \n\nI nyere eller nyrenoverede boliger findes ofte individuelle målere samt målere på fællesarealer, så opkrævningen og/eller reguleringen kan ske ud fra det faktiske forbrug. Hvor der ikke er installeret el- og varmemålere, betales et beløb, der svarer til den forholdsmæssige andel af de budgetterede udgifter for den del af bruttoetagearealet, der vedrører bolig- og fællesarealer.\n\nBåde tilbuddets samlede udgifter og de specifikke udgifter til el/varme for boligen og fællesarealer skal angives. Der må ikke opkræves særskilt for vand, da dette er en del af driftsbudgettet for ejendommen."]
["Hele tilbuddets forventede udgifter til el og varme i 2025 (inkl. boligareal, fællesareal og serviceareal): \nHer angives tilbuddets samlede forventede udgifter til el og varme for hele bygningen. I tallet indregnes ikke andre driftsudgifter f.eks. vand, renovation m.m. "]
["El - egen bolig: \nHer opgøres borgerens forventede udgift til el for egen bolig pr. måned inklusiv moms. Det er ikke den samlede udgift for alle borgere på tilbuddet."]
["El - fællesareal: \nHer opgøres borgerens forventede udgift til en andel af eludgiften for fælles området pr. måned inklusiv moms. Det er ikke den samlede udgift for alle borgere på tilbuddet. Til beregning af borgerens andel af fælles området anvendes tallet fra \"Borgerens andel af fællesarealer\" (Felt B59)."]
["Varme - egen bolig: \nHer opgøres borgerens aconto udgift til varme for egen bolig pr. måned inklusiv moms. Det er ikke den samlede udgifter for alle borgere på tilbuddet."]
["Varme - fællesareal: \nHer opgøres borgerens forventede udgift til en andel af varmeudgiften for fælles området pr. måned inklusiv moms. Det er ikke den samlede udgift for alle borgere på tilbuddet. Til beregning af borgerens andel af fælles området anvendes tallet fra \"Borgerens andel af fællesarealer\"."]
[]
["Kost "]
["I henhold til Serviceloven er der tre typer af kostordninger, som beboerne kan være visiteret til. \n1) Praktisk hjælp til madlavning (§83 stk. 1, nr. 2)\n2) Socialpædagogisk bistand til madlavning (§ 85)\n3) Madserviceordning (§83, stk. 1, nr. 3) \n\nDet er handlekommunen, der visiterer borgeren til en af disse tre kostordninger. Borgeren betaler for kost ud fra, hvilken kostordning de er visiteret til. I henhold til rammeaftalen fastsætter og opkræver handlekommunen beløbet for madserviceordning, mens det er botilbuddet, der fastsætter og opkræver beløbet for de to andre kostordninger. \n\nDet er kun i forhold til madserviceordning (§83, stk. 1, nr. 3), at borgeren kan opkræves forarbejdningstillæg. Der er fastsat et årlig maksimal egenbetaling, som handlekommunen må opkræve for madservice. Se BEK nr 1576 af 27/12/2014 Bekendtgørelse om betaling for generelle tilbud og for tilbud om personlig og praktisk hjælp m.v. efter servicelovens §§ 79, 83 og 84.\n\n"]
["1. Praktisk hjælp SEL §83 stk. 1, nr. 2: \nHer angives det månedlige beløb, som tilbuddet forventer at opkræve, hvis borgeren er visiteret til denne kostordning. Der må ikke opkræves for personaleomkostninger."]
["2. Socialpædagogisk bistand til madlavning SEL §85:\nHer angives det månedlige beløb, som tilbuddet forventer at opkræve, hvis borgeren er visiteret til denne kostordning. Der må ikke opkræves for personaleomkostninger."]
["3. Madservice SEL §83 stk. 1, nr. 3\nDer angives følgende månedlige omkostninger, som tilbuddet forventer at have til denne type kostordning:\n- Omkostninger til kostordningen ekslusiv omkostninger til forarbejdning. \n- Omkostninger til forarbejdning - dvs. personaleomkostninger. \n\nTilbuddet skal angive de forventede månedlige omkostninger, så handlekommunen har dokumentation for det beløb, som de fastsætter. Handlekommunen skal være opmærksom på, at der lovmæssigt er fastsat et årlig maksimal egenbetaling, som handlekommunen må opkræve for madservice. Se skrivelse med beløb gældende pr. 1. januar 2024. \n\nHandlekommunen skal være opmærksom på at give tilbuddet besked om den fastsatte opkrævning af egenbetaling for madserviceordning. "]
[]
["Valgfrie borgerydelser inkl. moms"]
["Det er tilbuddet, der fastsætter og opkræver egenbetaling for valgfrie serviceydelser. Egenbetalingen fastsættes ud fra de faktiske gennemsnitlige udgifter til ydelserne. Der må ikke indregnes personaletimer. Borgeren kan fravælge ydelserne, hvis ikke borgeren har råd til dem. \n\nDer oplyses beløb for rengøring og vask. Oplysninger om beløb for øvrige valgfrie ydelser kan fås ved henvendelse til botilbuddet, hvis der er behov herfor. \n\nOpgørelsen kan bruges af handlekommunen i forbindelse med beregningen af borgerens rådighedsbeløb"]

{"sheet":"Data","index":5,"n_rows":6,"n_cols":1,"rows_kept":6,"cut":false,"hidden":true,"merged":[]}
[]
["Opkrævning af valgfrie ydelser"]
["Tilbud"]
["Betalingskommune"]
["Handlekommune"]
["Andre "]